[Event "Titled Tuesday Blitz December 13 Late 2022"]
[White "Sarana, Alexey"]
[Black "Nakamura, Hikaru"]
[WhiteFideId "24133795"]
[BlackFideId "2016192"]
[WhiteElo "2708"]
[BlackElo "2909"]
[Result "0-1"]
[Round "10"]
[TimeControl "180+1"]
[Date "2022.12.13"]
[WhiteClock "0:00:06"]
[BlackClock "0:00:08"]

1. d4 {[%clk 0:03:00]}  d5 {[%clk 0:02:57]} 2. c4 {[%clk 0:03:01]}  e6 {[%clk 0:02:54]} 3. Nc3 {[%clk 0:03:01]}  c6 {[%clk 0:02:49]} 4. Nf3 {[%clk 0:02:55]}  Nf6 {[%clk 0:02:48]} 5. e3 {[%clk 0:02:55]}  Nbd7 {[%clk 0:02:48]} 6. Qc2 {[%clk 0:02:55]}  Bd6 {[%clk 0:02:46]} 7. Bd3 {[%clk 0:02:56]}  dxc4 {[%clk 0:02:41]} 8. Bxc4 {[%clk 0:02:57]}  b5 {[%clk 0:02:41]} 9. Be2 {[%clk 0:02:54]}  Bb7 {[%clk 0:02:41]} 10. O-O {[%clk 0:02:52]}  a6 {[%clk 0:02:39]} 11. e4 {[%clk 0:02:50]}  e5 {[%clk 0:02:36]} 12. dxe5 {[%clk 0:02:51]}  Nxe5 {[%clk 0:02:37]} 13. Nd4 {[%clk 0:02:51]}  g6 {[%clk 0:02:28]} 14. Bg5 {[%clk 0:02:43]}  h6 {[%clk 0:01:51]} 15. Bh4 {[%clk 0:02:41]}  c5 {[%clk 0:01:37]} 16. Ndxb5 {[%clk 0:02:27]}  axb5 {[%clk 0:01:37]} 17. Bxb5+ {[%clk 0:02:28]}  Kf8 {[%clk 0:01:35]} 18. f4 {[%clk 0:02:26]}  g5 {[%clk 0:01:35]} 19. fxe5 {[%clk 0:02:11]}  Bxe5 {[%clk 0:01:36]} 20. Bf2 {[%clk 0:02:02]}  Ng4 {[%clk 0:01:29]} 21. Bxc5+ {[%clk 0:01:41]}  Kg7 {[%clk 0:01:28]} 22. h3 {[%clk 0:01:36]}  Bd4+ {[%clk 0:00:57]} 23. Bxd4+ {[%clk 0:01:35]}  Qxd4+ {[%clk 0:00:58]} 24. Kh1 {[%clk 0:01:35]}  h5 {[%clk 0:00:58]} 25. Ne2 {[%clk 0:01:08]}  Nf2+ {[%clk 0:00:47]} 26. Rxf2 {[%clk 0:00:24]}  Qxf2 {[%clk 0:00:48]} 27. Qc7 {[%clk 0:00:24]}  Rab8 {[%clk 0:00:35]} 28. Ng3 {[%clk 0:00:24]}  Qf4 {[%clk 0:00:24]} 29. Qc3+ {[%clk 0:00:13]}  f6 {[%clk 0:00:22]} 30. Rf1 {[%clk 0:00:11]}  Qe5 {[%clk 0:00:22]} 31. Nf5+ {[%clk 0:00:06]}  Kg6 {[%clk 0:00:22]} 32. Qxe5 {[%clk 0:00:05]}  fxe5 {[%clk 0:00:23]} 33. Ne7+ {[%clk 0:00:06]}  Kg7 {[%clk 0:00:24]} 34. Nf5+ {[%clk 0:00:06]}  Kh7 {[%clk 0:00:25]} 35. Nd6 {[%clk 0:00:06]}  Bxe4 {[%clk 0:00:23]} 36. Nxe4 {[%clk 0:00:03]}  Rxb5 {[%clk 0:00:23]} 37. b3 {[%clk 0:00:02]}  g4 {[%clk 0:00:22]} 38. hxg4 {[%clk 0:00:02]}  hxg4 {[%clk 0:00:23]} 39. Kh2 {[%clk 0:00:03]}  Rb4 {[%clk 0:00:23]} 40. Re1 {[%clk 0:00:03]}  Ra8 {[%clk 0:00:21]} 41. Re2 {[%clk 0:00:03]}  Kg6 {[%clk 0:00:20]} 42. Kg3 {[%clk 0:00:04]}  Rf8 {[%clk 0:00:21]} 43. Nd6 {[%clk 0:00:03]}  Kf6 {[%clk 0:00:05]} 44. Nc4 {[%clk 0:00:02]}  Re8 {[%clk 0:00:05]} 45. Kxg4 {[%clk 0:00:03]}  Rbb8 {[%clk 0:00:05]} 46. Kf3 {[%clk 0:00:03]}  Rbd8 {[%clk 0:00:05]} 47. Ke3 {[%clk 0:00:03]}  Rb8 {[%clk 0:00:05]} 48. Rd2 {[%clk 0:00:04]}  Ke6 {[%clk 0:00:05]} 49. Rd6+ {[%clk 0:00:04]}  Kf5 {[%clk 0:00:05]} 50. g4+ {[%clk 0:00:04]}  Kxg4 {[%clk 0:00:05]} 51. Ke4 {[%clk 0:00:05]}  Kg5 {[%clk 0:00:06]} 52. Rc6 {[%clk 0:00:03]}  Rbd8 {[%clk 0:00:06]} 53. Nxe5 {[%clk 0:00:03]}  Rd2 {[%clk 0:00:06]} 54. Rg6+ {[%clk 0:00:03]}  Kh5 {[%clk 0:00:06]} 55. Rg3 {[%clk 0:00:01]}  Re2+ {[%clk 0:00:06]} 56. Re3 {[%clk 0:00:01]}  Rxe3+ {[%clk 0:00:05]} 57. Kxe3 {[%clk 0:00:02]}  Rxe5+ {[%clk 0:00:06]} 58. Kd4 {[%clk 0:00:03]}  Re1 {[%clk 0:00:06]} 59. Kc5 {[%clk 0:00:03]}  Kg6 {[%clk 0:00:07]} 60. b4 {[%clk 0:00:04]}  Kf7 {[%clk 0:00:08]} 61. Kc6 {[%clk 0:00:04]}  Ke7 {[%clk 0:00:08]} 62. b5 {[%clk 0:00:03]}  Rc1+ {[%clk 0:00:07]} 63. Kb7 {[%clk 0:00:04]}  Kd7 {[%clk 0:00:06]} 64. a4 {[%clk 0:00:04]}  Ra1 {[%clk 0:00:06]} 65. b6 {[%clk 0:00:03]}  Rxa4 {[%clk 0:00:06]} 66. Kb8 {[%clk 0:00:04]}  Kc6 {[%clk 0:00:05]} 67. b7 {[%clk 0:00:05]}  Kb6 {[%clk 0:00:03]} 68. Kc8 {[%clk 0:00:05]}  Rc4+ {[%clk 0:00:04]} 69. Kb8 {[%clk 0:00:05]}  Rc1 {[%clk 0:00:04]} 70. Ka8 {[%clk 0:00:04]}  Ra1+ {[%clk 0:00:05]} 71. Kb8 {[%clk 0:00:05]}  Ra7 {[%clk 0:00:06]} 72. Kc8 {[%clk 0:00:06]}  Rxb7 {[%clk 0:00:07]} 73. Kd8 {[%clk 0:00:06]}  Rc7 {[%clk 0:00:08]} 0-1


[Site "https://www.chess.com"]

[Event "Titled Tuesday Blitz December 13 Late 2022"]
[White "Sargsyan, Anna M."]
[Black "Pakleza, Zbigniew"]
[WhiteFideId "13308130"]
[BlackFideId "1119290"]
[WhiteElo "2284"]
[BlackElo "2410"]
[Result "0-1"]
[Round "10"]
[TimeControl "180+1"]
[Date "2022.12.13"]
[WhiteClock "0:00:04"]
[BlackClock "0:00:04"]

1. d4 {[%clk 0:02:58]}  d6 {[%clk 0:02:55]} 2. e4 {[%clk 0:02:56]}  Nf6 {[%clk 0:02:56]} 3. Nc3 {[%clk 0:02:56]}  c6 {[%clk 0:02:56]} 4. Bd3 {[%clk 0:02:56]}  e5 {[%clk 0:02:56]} 5. Nge2 {[%clk 0:02:48]}  Nbd7 {[%clk 0:02:55]} 6. O-O {[%clk 0:02:48]}  Be7 {[%clk 0:02:55]} 7. f4 {[%clk 0:02:48]}  O-O {[%clk 0:02:54]} 8. Kh1 {[%clk 0:02:48]}  Re8 {[%clk 0:02:52]} 9. Be3 {[%clk 0:02:47]}  Bf8 {[%clk 0:02:50]} 10. Qd2 {[%clk 0:02:47]}  b5 {[%clk 0:02:33]} 11. a3 {[%clk 0:02:42]}  Bb7 {[%clk 0:02:33]} 12. Rae1 {[%clk 0:02:37]}  a5 {[%clk 0:02:21]} 13. Ng3 {[%clk 0:02:14]}  exd4 {[%clk 0:02:02]} 14. Bxd4 {[%clk 0:02:15]}  b4 {[%clk 0:02:03]} 15. axb4 {[%clk 0:02:05]}  axb4 {[%clk 0:02:04]} 16. Nd1 {[%clk 0:01:58]}  c5 {[%clk 0:02:03]} 17. Bg1 {[%clk 0:01:59]}  Ra1 {[%clk 0:01:37]} 18. c3 {[%clk 0:01:54]}  Qa8 {[%clk 0:01:19]} 19. cxb4 {[%clk 0:01:51]}  Nxe4 {[%clk 0:01:05]} 20. Nxe4 {[%clk 0:01:49]}  Bxe4 {[%clk 0:01:06]} 21. Bxe4 {[%clk 0:01:44]}  Rxe4 {[%clk 0:01:06]} 22. Rxe4 {[%clk 0:01:36]}  Qxe4 {[%clk 0:01:07]} 23. Nc3 {[%clk 0:01:11]}  Qa8 {[%clk 0:01:07]} 24. Rxa1 {[%clk 0:01:10]}  Qxa1 {[%clk 0:01:08]} 25. bxc5 {[%clk 0:01:10]}  Nxc5 {[%clk 0:01:08]} 26. h3 {[%clk 0:00:54]}  h5 {[%clk 0:00:59]} 27. Kh2 {[%clk 0:00:54]}  Qf1 {[%clk 0:00:54]} 28. Nd5 {[%clk 0:00:49]}  Nd3 {[%clk 0:00:44]} 29. Bd4 {[%clk 0:00:37]}  h4 {[%clk 0:00:34]} 30. b4 {[%clk 0:00:28]}  Nc1 {[%clk 0:00:32]} 31. Qf2 {[%clk 0:00:20]}  Qc4 {[%clk 0:00:27]} 32. Nf6+ {[%clk 0:00:03]}  gxf6 {[%clk 0:00:25]} 33. Bxf6 {[%clk 0:00:04]}  Ne2 {[%clk 0:00:13]} 34. Bg5 {[%clk 0:00:02]}  f6 {[%clk 0:00:09]} 35. Bxf6 {[%clk 0:00:01]}  Qxf4+ {[%clk 0:00:10]} 36. Qxf4 {[%clk 0:00:01]}  Nxf4 {[%clk 0:00:10]} 37. Bxh4 {[%clk 0:00:01]}  d5 {[%clk 0:00:09]} 38. Bf2 {[%clk 0:00:02]}  Nd3 {[%clk 0:00:08]} 39. Bd4 {[%clk 0:00:02]}  Nxb4 {[%clk 0:00:07]} 40. g4 {[%clk 0:00:02]}  Nc6 {[%clk 0:00:08]} 41. Bb2 {[%clk 0:00:01]}  Kf7 {[%clk 0:00:07]} 42. Kg3 {[%clk 0:00:02]}  Bg7 {[%clk 0:00:06]} 43. Bxg7 {[%clk 0:00:01]}  Kxg7 {[%clk 0:00:07]} 44. Kf4 {[%clk 0:00:02]}  Kf6 {[%clk 0:00:07]} 45. h4 {[%clk 0:00:01]}  Ne5 {[%clk 0:00:07]} 46. g5+ {[%clk 0:00:01]}  Ke6 {[%clk 0:00:08]} 47. h5 {[%clk 0:00:01]}  Nf7 {[%clk 0:00:07]} 48. g6 {[%clk 0:00:01]}  Nh6 {[%clk 0:00:08]} 49. Ke3 {[%clk 0:00:02]}  Ke5 {[%clk 0:00:06]} 50. Kd3 {[%clk 0:00:02]}  Nf5 {[%clk 0:00:05]} 51. g7 {[%clk 0:00:01]}  Nh6 {[%clk 0:00:03]} 52. Ke3 {[%clk 0:00:01]}  Ke6 {[%clk 0:00:03]} 53. Kd4 {[%clk 0:00:01]}  Kd6 {[%clk 0:00:03]} 54. Kd3 {[%clk 0:00:01]}  Ke5 {[%clk 0:00:04]} 55. Ke3 {[%clk 0:00:02]}  d4+ {[%clk 0:00:04]} 56. Kd3 {[%clk 0:00:03]}  Kd5 {[%clk 0:00:04]} 57. Kd2 {[%clk 0:00:03]}  Ke4 {[%clk 0:00:04]} 58. Ke2 {[%clk 0:00:03]}  Ng8 {[%clk 0:00:03]} 59. Kd2 {[%clk 0:00:03]}  d3 {[%clk 0:00:04]} 60. Kd1 {[%clk 0:00:03]}  Ke3 {[%clk 0:00:04]} 61. Ke1 {[%clk 0:00:03]}  Ke4 {[%clk 0:00:03]} 62. Kd2 {[%clk 0:00:04]}  Kd4 {[%clk 0:00:03]} 63. Kd1 {[%clk 0:00:04]}  Ke3 {[%clk 0:00:03]} 64. Ke1 {[%clk 0:00:05]}  Ke4 {[%clk 0:00:03]} 65. Kd2 {[%clk 0:00:05]}  Nh6 {[%clk 0:00:03]} 66. Kd1 {[%clk 0:00:05]}  Ke3 {[%clk 0:00:02]} 67. Ke1 {[%clk 0:00:03]}  d2+ {[%clk 0:00:03]} 68. Kd1 {[%clk 0:00:04]}  Ng4 {[%clk 0:00:04]} 69. g8=Q {[%clk 0:00:04]}  Nf2+ {[%clk 0:00:05]} 70. Kc2 {[%clk 0:00:04]}  d1=Q+ {[%clk 0:00:06]} 71. Kb2 {[%clk 0:00:04]}  Nd3+ {[%clk 0:00:05]} 72. Ka2 {[%clk 0:00:04]}  Qc2+ {[%clk 0:00:02]} 73. Ka3 {[%clk 0:00:03]}  Qb2+ {[%clk 0:00:03]} 74. Ka4 {[%clk 0:00:04]}  Qb4# {[%clk 0:00:04]} 0-1


[Site "https://www.chess.com"]

[Event "Titled Tuesday Blitz December 13 Late 2022"]
[White "Shapiro, Daniel"]
[Black "Hajiyev, Kanan"]
[WhiteFideId "2001780"]
[BlackFideId "13404148"]
[WhiteElo "2355"]
[BlackElo "2118"]
[Result "0-1"]
[Round "10"]
[TimeControl "180+1"]
[Date "2022.12.14"]
[WhiteClock "0:00:01"]
[BlackClock "0:00:03"]

1. d4 {[%clk 0:03:00]}  c6 {[%clk 0:03:00]} 2. c4 {[%clk 0:02:59]}  d5 {[%clk 0:03:01]} 3. Nf3 {[%clk 0:02:58]}  Nf6 {[%clk 0:03:01]} 4. Qb3 {[%clk 0:02:58]}  Qb6 {[%clk 0:03:01]} 5. Nc3 {[%clk 0:02:46]}  Bf5 {[%clk 0:02:57]} 6. c5 {[%clk 0:02:15]}  Qc7 {[%clk 0:02:48]} 7. Bf4 {[%clk 0:02:11]}  Qc8 {[%clk 0:02:48]} 8. h3 {[%clk 0:02:07]}  e6 {[%clk 0:02:47]} 9. e3 {[%clk 0:02:02]}  Be7 {[%clk 0:02:48]} 10. Rc1 {[%clk 0:01:58]}  O-O {[%clk 0:02:48]} 11. Be2 {[%clk 0:01:59]}  Nbd7 {[%clk 0:02:47]} 12. O-O {[%clk 0:01:52]}  Ne4 {[%clk 0:02:45]} 13. Nxe4 {[%clk 0:01:43]}  Bxe4 {[%clk 0:02:45]} 14. Qc3 {[%clk 0:01:36]}  Bf6 {[%clk 0:02:35]} 15. b4 {[%clk 0:01:27]}  Re8 {[%clk 0:02:35]} 16. b5 {[%clk 0:01:23]}  Bxf3 {[%clk 0:02:23]} 17. Bxf3 {[%clk 0:01:22]}  cxb5 {[%clk 0:02:20]} 18. Bd6 {[%clk 0:01:08]}  Qc6 {[%clk 0:01:59]} 19. Qd3 {[%clk 0:00:52]}  Nb6 {[%clk 0:01:29]} 20. cxb6 {[%clk 0:00:31]}  Qxd6 {[%clk 0:01:28]} 21. bxa7 {[%clk 0:00:31]}  b4 {[%clk 0:01:16]} 22. Qb5 {[%clk 0:00:25]}  Qe7 {[%clk 0:00:58]} 23. Rc5 {[%clk 0:00:20]}  Rxa7 {[%clk 0:00:51]} 24. Rfc1 {[%clk 0:00:20]}  Rxa2 {[%clk 0:00:36]} 25. Qxb4 {[%clk 0:00:20]}  Raa8 {[%clk 0:00:26]} 26. Qb6 {[%clk 0:00:19]}  Rab8 {[%clk 0:00:22]} 27. Rc7 {[%clk 0:00:18]}  Qd8 {[%clk 0:00:22]} 28. Qb5 {[%clk 0:00:15]}  Re7 {[%clk 0:00:14]} 29. R7c3 {[%clk 0:00:11]}  g6 {[%clk 0:00:11]} 30. g3 {[%clk 0:00:10]}  h5 {[%clk 0:00:10]} 31. Kg2 {[%clk 0:00:11]}  Kg7 {[%clk 0:00:11]} 32. R1c2 {[%clk 0:00:09]}  Qd7 {[%clk 0:00:11]} 33. Qb6 {[%clk 0:00:09]}  Qd8 {[%clk 0:00:09]} 34. Rc7 {[%clk 0:00:07]}  Rxc7 {[%clk 0:00:09]} 35. Rxc7 {[%clk 0:00:07]}  e5 {[%clk 0:00:09]} 36. Qc5 {[%clk 0:00:05]}  e4 {[%clk 0:00:07]} 37. Be2 {[%clk 0:00:05]}  b6 {[%clk 0:00:08]} 38. Qc6 {[%clk 0:00:04]}  h4 {[%clk 0:00:05]} 39. Rd7 {[%clk 0:00:03]}  Qe8 {[%clk 0:00:05]} 40. Qxd5 {[%clk 0:00:03]}  b5 {[%clk 0:00:04]} 41. Bg4 {[%clk 0:00:02]}  hxg3 {[%clk 0:00:04]} 42. Be6 {[%clk 0:00:02]}  Kh6 {[%clk 0:00:01]} 43. Rxf7 {[%clk 0:00:01]}  gxf2 {[%clk 0:00:02]} 44. Rxf6 {[%clk 0:00:01]}  b4 {[%clk 0:00:01]} 45. Rxf2 {[%clk 0:00:01]}  Qe7 {[%clk 0:00:01]} 46. Qe5 {[%clk 0:00:01]}  Qg5+ {[%clk 0:00:01]} 47. Qxg5+ {[%clk 0:00:01]}  Kxg5 {[%clk 0:00:02]} 48. Bb3 {[%clk 0:00:01]}  Rb6 {[%clk 0:00:02]} 49. Rf4 {[%clk 0:00:01]}  Ra6 {[%clk 0:00:02]} 50. Rxe4 {[%clk 0:00:01]}  Ra3 {[%clk 0:00:03]} 51. Bc4 {[%clk 0:00:01]}  Rc3 {[%clk 0:00:03]} 52. Bd5 {[%clk 0:00:01]}  Rc2+ {[%clk 0:00:03]} 0-1


[Site "https://www.chess.com"]

[Event "Titled Tuesday Blitz December 13 Late 2022"]
[White "So, Wesley"]
[Black "Chigaev, Maksim"]
[WhiteFideId "5202213"]
[BlackFideId "4108116"]
[WhiteElo "2763"]
[BlackElo "2542"]
[Result "0-1"]
[Round "10"]
[TimeControl "180+1"]
[Date "2022.12.13"]
[WhiteClock "0:00:05"]
[BlackClock "0:00:08"]

1. e4 {[%clk 0:03:00]}  c5 {[%clk 0:03:00]} 2. Nf3 {[%clk 0:03:00]}  e6 {[%clk 0:03:00]} 3. g3 {[%clk 0:03:00]}  Nc6 {[%clk 0:03:00]} 4. Bg2 {[%clk 0:03:00]}  Nf6 {[%clk 0:03:01]} 5. Nc3 {[%clk 0:03:01]}  a6 {[%clk 0:02:59]} 6. O-O {[%clk 0:02:50]}  Qc7 {[%clk 0:02:59]} 7. Re1 {[%clk 0:02:44]}  d6 {[%clk 0:02:38]} 8. d4 {[%clk 0:02:44]}  cxd4 {[%clk 0:02:38]} 9. Nxd4 {[%clk 0:02:44]}  Nxd4 {[%clk 0:02:34]} 10. Qxd4 {[%clk 0:02:45]}  e5 {[%clk 0:02:30]} 11. Qd3 {[%clk 0:02:36]}  h6 {[%clk 0:02:29]} 12. a4 {[%clk 0:02:30]}  Be6 {[%clk 0:02:26]} 13. a5 {[%clk 0:02:17]}  Rc8 {[%clk 0:02:24]} 14. Bd2 {[%clk 0:02:05]}  Be7 {[%clk 0:02:23]} 15. Rec1 {[%clk 0:02:03]}  O-O {[%clk 0:02:19]} 16. Na4 {[%clk 0:02:02]}  Nd7 {[%clk 0:02:14]} 17. b3 {[%clk 0:01:54]}  Bg5 {[%clk 0:02:05]} 18. h4 {[%clk 0:01:44]}  Bxd2 {[%clk 0:02:03]} 19. Qxd2 {[%clk 0:01:45]}  Rfd8 {[%clk 0:01:58]} 20. Qb4 {[%clk 0:01:40]}  Qc6 {[%clk 0:01:33]} 21. c4 {[%clk 0:01:18]}  Nc5 {[%clk 0:01:32]} 22. Rd1 {[%clk 0:01:18]}  Nxa4 {[%clk 0:01:26]} 23. Rxa4 {[%clk 0:01:19]}  Qc5 {[%clk 0:01:03]} 24. Qc3 {[%clk 0:01:10]}  h5 {[%clk 0:00:52]} 25. Bf3 {[%clk 0:01:04]}  g6 {[%clk 0:00:53]} 26. Kg2 {[%clk 0:01:04]}  Kg7 {[%clk 0:00:53]} 27. Ra2 {[%clk 0:01:02]}  b5 {[%clk 0:00:45]} 28. axb6 {[%clk 0:01:02]}  Qxb6 {[%clk 0:00:46]} 29. Rda1 {[%clk 0:00:56]}  Rb8 {[%clk 0:00:45]} 30. Bd1 {[%clk 0:00:55]}  Bc8 {[%clk 0:00:42]} 31. Rd2 {[%clk 0:00:51]}  Bb7 {[%clk 0:00:39]} 32. Bc2 {[%clk 0:00:48]}  f5 {[%clk 0:00:33]} 33. f3 {[%clk 0:00:41]}  fxe4 {[%clk 0:00:32]} 34. fxe4 {[%clk 0:00:42]}  Rf8 {[%clk 0:00:31]} 35. Rad1 {[%clk 0:00:41]}  Rf6 {[%clk 0:00:29]} 36. Rf1 {[%clk 0:00:34]}  Rxf1 {[%clk 0:00:24]} 37. Kxf1 {[%clk 0:00:35]}  Rf8+ {[%clk 0:00:24]} 38. Kg2 {[%clk 0:00:35]}  Bc8 {[%clk 0:00:19]} 39. b4 {[%clk 0:00:32]}  a5 {[%clk 0:00:09]} 40. bxa5 {[%clk 0:00:30]}  Qc5 {[%clk 0:00:09]} 41. Qd3 {[%clk 0:00:25]}  Bg4 {[%clk 0:00:08]} 42. Qxd6 {[%clk 0:00:19]}  Rf2+ {[%clk 0:00:08]} 43. Kg1 {[%clk 0:00:17]}  Qxd6 {[%clk 0:00:08]} 44. Rxd6 {[%clk 0:00:17]}  Rxc2 {[%clk 0:00:09]} 45. a6 {[%clk 0:00:17]}  Rxc4 {[%clk 0:00:09]} 46. Rd5 {[%clk 0:00:13]}  Ra4 {[%clk 0:00:09]} 47. Rxe5 {[%clk 0:00:12]}  Rxa6 {[%clk 0:00:09]} 48. Re8 {[%clk 0:00:12]}  Ra3 {[%clk 0:00:09]} 49. Kf2 {[%clk 0:00:12]}  Rf3+ {[%clk 0:00:09]} 50. Kg2 {[%clk 0:00:12]}  Re3 {[%clk 0:00:09]} 51. Re5 {[%clk 0:00:12]}  Kf6 {[%clk 0:00:09]} 52. Re8 {[%clk 0:00:13]}  Re2+ {[%clk 0:00:09]} 53. Kf1 {[%clk 0:00:12]}  Kf7 {[%clk 0:00:09]} 54. Re5 {[%clk 0:00:11]}  Rd2 {[%clk 0:00:09]} 55. Ra5 {[%clk 0:00:09]}  Rd4 {[%clk 0:00:08]} 56. Ra7+ {[%clk 0:00:04]}  Kf6 {[%clk 0:00:08]} 57. Ra6+ {[%clk 0:00:05]}  Be6 {[%clk 0:00:08]} 0-1


[Site "https://www.chess.com"]

[Event "Titled Tuesday Blitz December 13 Late 2022"]
[White "Stanisz, Patryk"]
[Black "Marchesich, Giovanni"]
[WhiteFideId "1123106"]
[BlackFideId "2824790"]
[WhiteElo "2069"]
[BlackElo "2200"]
[Result "0-1"]
[Round "10"]
[TimeControl "180+1"]
[Date "2022.12.14"]
[WhiteClock "0:00:02"]
[BlackClock "0:01:11"]

1. d4 {[%clk 0:02:58]}  g6 {[%clk 0:02:58]} 2. c4 {[%clk 0:02:56]}  f6 {[%clk 0:02:58]} 3. Nc3 {[%clk 0:02:56]}  Nh6 {[%clk 0:02:58]} 4. Nf3 {[%clk 0:02:56]}  Nf7 {[%clk 0:02:59]} 5. g3 {[%clk 0:02:56]}  Bg7 {[%clk 0:02:59]} 6. Bg2 {[%clk 0:02:57]}  O-O {[%clk 0:03:00]} 7. O-O {[%clk 0:02:57]}  d6 {[%clk 0:03:01]} 8. b3 {[%clk 0:02:42]}  e5 {[%clk 0:03:01]} 9. Bb2 {[%clk 0:02:41]}  Nc6 {[%clk 0:03:01]} 10. e3 {[%clk 0:02:37]}  h6 {[%clk 0:03:00]} 11. a3 {[%clk 0:02:35]}  f5 {[%clk 0:03:00]} 12. dxe5 {[%clk 0:02:26]}  Nfxe5 {[%clk 0:02:57]} 13. Nxe5 {[%clk 0:02:23]}  Nxe5 {[%clk 0:02:57]} 14. Rb1 {[%clk 0:02:21]}  g5 {[%clk 0:02:53]} 15. Nd5 {[%clk 0:01:29]}  c6 {[%clk 0:02:47]} 16. Nb4 {[%clk 0:01:17]}  f4 {[%clk 0:02:48]} 17. Be4 {[%clk 0:01:01]}  Bg4 {[%clk 0:02:23]} 18. f3 {[%clk 0:00:59]}  Bh5 {[%clk 0:02:23]} 19. g4 {[%clk 0:00:58]}  Bf7 {[%clk 0:02:04]} 20. exf4 {[%clk 0:00:58]}  gxf4 {[%clk 0:02:02]} 21. Nd3 {[%clk 0:00:58]}  Qg5 {[%clk 0:01:48]} 22. Qe1 {[%clk 0:00:35]}  Rae8 {[%clk 0:01:39]} 23. Qf2 {[%clk 0:00:30]}  Nxg4 {[%clk 0:01:32]} 24. fxg4 {[%clk 0:00:27]}  Rxe4 {[%clk 0:01:32]} 25. Bxg7 {[%clk 0:00:22]}  Qxg7 {[%clk 0:01:23]} 26. Nxf4 {[%clk 0:00:20]}  Bxc4 {[%clk 0:01:19]} 27. Qg3 {[%clk 0:00:12]}  Bxf1 {[%clk 0:01:17]} 28. Rxf1 {[%clk 0:00:13]}  Qd4+ {[%clk 0:01:12]} 29. Kg2 {[%clk 0:00:08]}  Rexf4 {[%clk 0:01:11]} 30. Rxf4 {[%clk 0:00:05]}  Qxf4 {[%clk 0:01:11]} 31. Qd3 {[%clk 0:00:01]}  Qf2+ {[%clk 0:01:10]} 32. Kh1 {[%clk 0:00:02]}  Qf1+ {[%clk 0:01:09]} 33. Qxf1 {[%clk 0:00:02]}  Rxf1+ {[%clk 0:01:10]} 34. Kg2 {[%clk 0:00:02]}  Ra1 {[%clk 0:01:11]} 0-1


[Site "https://www.chess.com"]

[Event "Titled Tuesday Blitz December 13 Late 2022"]
[White "Svane, Frederik"]
[Black "Bortnyk, Olexandr"]
[WhiteFideId "12923044"]
[BlackFideId "14120828"]
[WhiteElo "2466"]
[BlackElo "2723"]
[Result "1-0"]
[Round "10"]
[TimeControl "180+1"]
[Date "2022.12.13"]
[WhiteClock "0:00:12"]
[BlackClock "0:00:01"]

1. c4 {[%clk 0:03:00]}  d6 {[%clk 0:03:00]} 2. Nc3 {[%clk 0:02:59]}  e5 {[%clk 0:02:59]} 3. g3 {[%clk 0:02:58]}  g6 {[%clk 0:02:58]} 4. Bg2 {[%clk 0:02:58]}  Bg7 {[%clk 0:02:58]} 5. e3 {[%clk 0:02:58]}  Nc6 {[%clk 0:02:59]} 6. Nge2 {[%clk 0:02:58]}  Bd7 {[%clk 0:03:00]} 7. d4 {[%clk 0:02:53]}  Qc8 {[%clk 0:03:00]} 8. h3 {[%clk 0:02:51]}  h5 {[%clk 0:03:00]} 9. b3 {[%clk 0:02:47]}  Nf6 {[%clk 0:02:48]} 10. Bb2 {[%clk 0:02:44]}  O-O {[%clk 0:02:47]} 11. Nd5 {[%clk 0:02:36]}  exd4 {[%clk 0:02:28]} 12. Nxd4 {[%clk 0:02:26]}  Nxd5 {[%clk 0:02:18]} 13. cxd5 {[%clk 0:02:27]}  Nxd4 {[%clk 0:02:16]} 14. Bxd4 {[%clk 0:02:27]}  Re8 {[%clk 0:02:09]} 15. Bxg7 {[%clk 0:02:27]}  Kxg7 {[%clk 0:02:09]} 16. Qd4+ {[%clk 0:02:27]}  Kg8 {[%clk 0:02:09]} 17. Rc1 {[%clk 0:02:27]}  a5 {[%clk 0:02:08]} 18. g4 {[%clk 0:02:22]}  h4 {[%clk 0:01:51]} 19. O-O {[%clk 0:02:22]}  a4 {[%clk 0:01:51]} 20. b4 {[%clk 0:02:22]}  Bb5 {[%clk 0:01:47]} 21. Rfe1 {[%clk 0:02:16]}  Qd7 {[%clk 0:01:44]} 22. Rc3 {[%clk 0:02:08]}  Rec8 {[%clk 0:01:35]} 23. Rec1 {[%clk 0:02:06]}  Qe7 {[%clk 0:01:35]} 24. a3 {[%clk 0:02:04]}  Ra6 {[%clk 0:01:34]} 25. Qe4 {[%clk 0:01:59]}  Qd8 {[%clk 0:01:15]} 26. g5 {[%clk 0:01:50]}  Qxg5 {[%clk 0:00:57]} 27. Rxc7 {[%clk 0:01:50]}  Re8 {[%clk 0:00:57]} 28. Qd4 {[%clk 0:01:43]}  Be2 {[%clk 0:00:53]} 29. Kh2 {[%clk 0:01:35]}  b5 {[%clk 0:00:52]} 30. R1c6 {[%clk 0:01:32]}  Raa8 {[%clk 0:00:28]} 31. Rxd6 {[%clk 0:01:28]}  Rad8 {[%clk 0:00:28]} 32. Rf6 {[%clk 0:01:20]}  Rf8 {[%clk 0:00:26]} 33. d6 {[%clk 0:01:20]}  Bc4 {[%clk 0:00:26]} 34. d7 {[%clk 0:01:03]}  Be6 {[%clk 0:00:25]} 35. Bc6 {[%clk 0:00:57]}  Bf5 {[%clk 0:00:17]} 36. Bd5 {[%clk 0:00:39]}  Rxd7 {[%clk 0:00:13]} 37. Rxd7 {[%clk 0:00:30]}  Bxd7 {[%clk 0:00:14]} 38. Rxf7 {[%clk 0:00:29]}  Rxf7 {[%clk 0:00:13]} 39. Bxf7+ {[%clk 0:00:29]}  Kxf7 {[%clk 0:00:14]} 40. Qxd7+ {[%clk 0:00:30]}  Kf8 {[%clk 0:00:10]} 41. Qd6+ {[%clk 0:00:23]}  Kf7 {[%clk 0:00:10]} 42. Qd7+ {[%clk 0:00:21]}  Kf8 {[%clk 0:00:10]} 43. Qg4 {[%clk 0:00:18]}  Qd5 {[%clk 0:00:02]} 44. Qxh4 {[%clk 0:00:17]}  Kf7 {[%clk 0:00:02]} 45. Qf4+ {[%clk 0:00:17]}  Kg8 {[%clk 0:00:02]} 46. e4 {[%clk 0:00:11]}  Qa2 {[%clk 0:00:02]} 47. e5 {[%clk 0:00:11]}  Qxa3 {[%clk 0:00:01]} 48. e6 {[%clk 0:00:12]} 1-0


[Site "https://www.chess.com"]

[Event "Titled Tuesday Blitz December 13 Late 2022"]
[White "Adel, Sara"]
[Black "Antonova, Nadezhda"]
[WhiteFideId "10616764"]
[BlackFideId "14700182"]
[WhiteElo "1997"]
[BlackElo "1814"]
[Result "1-0"]
[Round "11"]
[TimeControl "180+1"]
[Date "2022.12.14"]
[WhiteClock "0:02:13"]
[BlackClock "0:02:00"]

1. e4 {[%clk 0:02:59]}  c5 {[%clk 0:02:59]} 2. Nf3 {[%clk 0:02:57]}  d6 {[%clk 0:02:59]} 3. d4 {[%clk 0:02:58]}  cxd4 {[%clk 0:03:00]} 4. Nxd4 {[%clk 0:02:59]}  Nf6 {[%clk 0:03:00]} 5. Nc3 {[%clk 0:03:00]}  a6 {[%clk 0:02:59]} 6. Bc4 {[%clk 0:02:59]}  e6 {[%clk 0:03:00]} 7. Bb3 {[%clk 0:02:59]}  Be7 {[%clk 0:02:59]} 8. Be3 {[%clk 0:02:59]}  O-O {[%clk 0:02:59]} 9. O-O {[%clk 0:02:54]}  Qc7 {[%clk 0:02:59]} 10. h3 {[%clk 0:02:50]}  Nc6 {[%clk 0:02:59]} 11. Qd2 {[%clk 0:02:46]}  b5 {[%clk 0:02:58]} 12. Rae1 {[%clk 0:02:45]}  b4 {[%clk 0:02:55]} 13. Nce2 {[%clk 0:02:38]}  Nxe4 {[%clk 0:02:55]} 14. Qd3 {[%clk 0:02:38]}  d5 {[%clk 0:02:50]} 15. Bc1 {[%clk 0:02:25]}  a5 {[%clk 0:02:48]} 16. Bf4 {[%clk 0:02:21]}  e5 {[%clk 0:02:41]} 17. Nxc6 {[%clk 0:02:21]}  Qxc6 {[%clk 0:02:32]} 18. Bxd5 {[%clk 0:02:20]}  Qa6 {[%clk 0:02:25]} 19. Qxe4 {[%clk 0:02:16]}  Rb8 {[%clk 0:02:07]} 20. Bxe5 {[%clk 0:02:16]}  Bd7 {[%clk 0:02:00]} 21. Bxb8 {[%clk 0:02:13]} 1-0


[Site "https://www.chess.com"]